bitfinex-derivatives/quotes_BTCF0:USTF0_20241110
["timestamp","ask_amount","ask_price","bid_price","bid_amount"]
[1731265892523,0.061721,80925.0,80922.0,0.3608]
[1731265892524,0.03024376,80923.0,80922.0,0.3608]
[1731265895120,0.09196576,80923.0,80922.0,0.3608]
[1731265895320,0.0919657,80923.0,80921.0,0.04362303]
[1731265895515,0.0302437,80922.0,80915.0,0.38551625]
[1731265895721,0.06815482,80921.0,80915.0,0.04351525]
[1731265895926,0.06815482,80921.0,80905.0,0.3608]
[1731265895927,0.06815482,80920.0,80905.0,0.3608]
[1731265896218,0.061732,80909.0,80908.0,0.061733]
[1731265896419,0.0302437,80909.0,80908.0,0.061733]
[1731265896618,0.0302437,80913.0,80906.0,0.061735]
[1731265896826,0.0302437,80912.0,80911.0,0.061731]
[1731265897017,0.0302437,80912.0,80905.0,0.40372992]
[1731265897223,0.10344871,80911.0,80908.0,0.061733]
[1731265897426,0.0732,80911.0,80908.0,0.061733]
[1731265897630,0.05241237,80911.0,80908.0,0.061733]
[1731265897820,0.0383,80911.0,80905.0,0.40372992]
[1731265898013,0.0383,80911.0,80909.0,0.061732]
[1731265899429,0.061727,80917.0,80909.0,0.061732]
[1731265899729,0.061727,80917.0,80913.0,0.3608]
[1731265900435,0.061728,80915.0,80913.0,0.3608]
[1731265901426,0.061732,80910.0,80906.0,0.061734]
[1731265901925,0.3608,80918.0,80907.0,0.061734]
[1731265902132,0.061728,80915.0,80909.0,0.061732]
[1731265902327,0.061724,80920.0,80916.0,0.061727]
[1731265902728,0.0346,80925.0,80913.0,0.3608]
[1731265902930,0.061724,80920.0,80913.0,0.422529]
[1731265903129,0.061724,80920.0,80915.0,0.061728]
[1731265903730,0.0346,80925.0,80913.0,0.3608]
[1731265903927,0.11732569,80924.0,80913.0,0.3608]
[1731265904128,0.061728,80915.0,80913.0,0.3608]
[1731265904533,0.061734,80907.0,80905.0,0.40372992]
[1731265904728,0.0365,80906.0,80905.0,0.40372992]
[1731265905335,0.0365,80906.0,80898.0,0.00478]
[1731265905336,0.06174,80899.0,80898.0,0.00478]
[1731265905523,0.42254,80899.0,80898.0,0.00478]
[1731265906124,0.06174,80899.0,80898.0,0.00478]
[1731265908229,0.15322569,80905.0,80898.0,0.00478]
[1731265908430,0.3608,80908.0,80904.0,0.11732569]
[1731265908724,0.3608,80908.0,80906.0,0.061734]
[1731265909938,0.0372,80916.0,80907.0,0.061734]
[1731265910237,0.061726,80918.0,80910.0,0.061732]
[1731265910438,0.3608,80923.0,80917.0,0.11732569]
[1731265910625,0.3608,80923.0,80916.0,0.3608]
[1731265910626,0.03024805,80922.0,80919.0,0.061724]
[1731265910935,0.3608,80923.0,80919.0,0.061724]
[1731265911134,0.3608,80923.0,80916.0,0.3608]
[1731265911328,0.3608,80923.0,80916.0,0.4030478]
[1731265912026,0.3608,80923.0,80918.0,0.061725]
[1731265912633,0.3608,80923.0,80916.0,0.4030478]
[1731265912826,0.061713,80934.0,80919.0,0.11732569]
[1731265913029,0.061713,80934.0,80926.0,0.3608]
[1731265913332,0.03024094,80933.0,80929.0,0.061717]
[1731265913533,0.0361,80939.0,80926.0,0.3608]
[1731265913829,0.061717,80930.0,80921.0,0.061723]
[1731265914031,0.061717,80930.0,80920.0,0.0368]
[1731265914032,0.061717,80930.0,80922.0,0.061722]
[1731265914239,0.061717,80930.0,80920.0,0.0368]
[1731265914533,0.061717,80930.0,80923.0,0.061722]
[1731265914935,0.03024284,80929.0,80923.0,0.061722]
[1731265915137,0.061717,80930.0,80923.0,0.061722]
[1731265915328,0.03024296,80929.0,80923.0,0.061722]
[1731265915527,0.061718,80929.0,80923.0,0.061722]
[1731265915727,0.03024262,80928.0,80923.0,0.061722]
[1731265915932,0.11732569,80930.0,80924.0,0.061721]
[1731265916131,0.03024261,80929.0,80924.0,0.3608]
[1731265916433,0.061712,80936.0,80928.0,0.061718]
[1731265916628,0.3969,80939.0,80934.0,0.061713]
[1731265916629,0.06814693,80935.0,80934.0,0.061713]
[1731265917135,0.03024204,80935.0,80934.0,0.061713]
[1731265917343,0.06814418,80940.0,80934.0,0.061713]
[1731265917640,0.061708,80941.0,80935.0,0.061712]
[1731265917641,0.06814418,80939.0,80935.0,0.061712]
[1731265917941,0.8608,80946.0,80932.0,0.47812569]
[1731265917942,0.03024204,80938.0,80932.0,0.47812569]
[1731265918136,0.03024204,80937.0,80932.0,0.47812569]
[1731265918437,0.03024204,80936.0,80932.0,0.47812569]
[1731265918739,0.03024204,80935.0,80933.0,0.061714]
[1731265918935,0.03024204,80934.0,80933.0,0.061714]
[1731265921235,0.061706,80944.0,80933.0,0.061714]
[1731265921425,0.03023649,80943.0,80932.0,0.40322745]
[1731265921626,0.03023649,80942.0,80939.0,0.3608]
[1731265921932,0.061706,80944.0,80939.0,0.3608]
[1731265922136,0.11732569,80940.0,80935.0,0.061712]
[1731265922338,0.06171,80939.0,80932.0,0.40322745]
[1731265922636,0.061706,80944.0,80935.0,0.061712]
[1731265922839,0.061708,80941.0,80935.0,0.061712]
[1731265923041,0.061708,80941.0,80932.0,0.40322745]
[1731265923042,0.61796569,80946.0,80932.0,0.40322745]
[1731265923243,0.061714,80934.0,80932.0,0.40322745]
[1731265923440,0.17903969,80934.0,80932.0,0.40322745]
[1731265924647,0.03023919,80933.0,80932.0,0.40322745]
[1731265924936,0.17903969,80934.0,80932.0,0.40322745]
[1731265925341,0.061715,80932.0,80919.0,0.422525]
[1731265925536,0.061722,80923.0,80919.0,0.422525]
[1731265925746,0.061722,80923.0,80919.0,0.46516581]
[1731265926134,0.11732569,80925.0,80919.0,0.04264081]
[1731265926335,0.03024501,80924.0,80913.0,0.422529]
[1731265926534,0.061727,80917.0,80913.0,0.422529]
[1731265927044,0.061727,80917.0,80914.0,0.061728]
[1731265929341,0.03024551,80916.0,80914.0,0.061728]
[1731265929649,0.03024551,80915.0,80914.0,0.061728]
[1731265931848,0.03024581,80915.0,80914.0,0.061728]
[1731265933241,0.03024581,80915.0,80913.0,0.40397051]
[1731265933446,0.03024581,80914.0,80913.0,0.40397051]
[1731265933644,0.061728,80915.0,80913.0,0.40397051]
[1731265933951,0.061728,80915.0,80913.0,0.04317051]
[1731265934145,0.03024796,80914.0,80910.0,0.02471374]
[1731265934345,0.03024796,80913.0,80910.0,0.02471374]
[1731265934544,0.03024796,80913.0,80911.0,0.06173]
[1731265935544,0.03024796,80912.0,80911.0,0.17905669]
[1731265935846,0.03024796,80912.0,80910.0,0.02471374]
[1731265935847,0.3608,80920.0,80916.0,0.061727]
[1731265936149,0.3608,80920.0,80910.0,0.02471374]
[1731265936150,0.061726,80918.0,80910.0,0.02471374]
[1731265936847,0.3608,80920.0,80910.0,0.02471374]
[1731265937043,0.061727,80916.0,80910.0,0.08644474]
[1731265937546,0.3608,80920.0,80910.0,0.08644474]
[1731265937547,0.061728,80915.0,80910.0,0.08644474]
[1731265938143,0.06173,80913.0,80910.0,0.08644474]
[1731265938449,0.061734,80907.0,80905.0,0.04374131]
[1731265938648,0.03024918,80912.0,80895.0,0.061743]
[1731265938649,0.11732569,80906.0,80895.0,0.061743]
[1731265939643,0.061739,80901.0,80895.0,0.061743]
[1731265939839,0.061739,80900.0,80895.0,0.061743]
[1731265940049,0.3608,80904.0,80894.0,0.02472263]
[1731265940351,0.06175,80886.0,80877.0,0.061756]
[1731265940648,0.17907569,80886.0,80885.0,0.04206583]
[1731265940849,0.17907569,80886.0,80885.0,0.00014898]
[1731265943853,0.3608,80897.0,80885.0,0.06189998]
[1731265943854,0.06175,80887.0,80885.0,0.06189998]
[1731265944454,0.06175,80887.0,80885.0,0.10416002]
[1731265947555,0.17907069,80893.0,80891.0,0.061746]
[1731265947760,0.061745,80893.0,80891.0,0.061746]
[1731265947962,0.061745,80893.0,80885.0,0.04240902]
[1731265948150,0.061745,80893.0,80892.0,0.061745]
[1731265950863,0.061747,80890.0,80885.0,0.04240902]
[1731265951058,0.11732569,80888.0,80885.0,0.04240902]
[1731265951255,0.06175,80886.0,80885.0,0.04240902]
[1731265951453,0.06175,80886.0,80885.0,0.00014898]
[1731265953363,0.06175,80886.0,80878.0,0.00443]
[1731265953364,0.061755,80879.0,80878.0,0.00443]
[1731265953555,0.53988069,80879.0,80878.0,0.00443]
[1731265953755,0.66824069,80879.0,80878.0,0.00443]
[1731265954156,1.03916069,80879.0,80878.0,0.00443]
[1731265954860,0.91080069,80879.0,80878.0,0.00443]
[1731265955163,0.921835,80879.0,80878.0,0.00443]
[1731265956665,0.793475,80879.0,80878.0,0.00443]
[1731265956851,0.0406,80885.0,80880.0,0.061754]
[1731265957166,0.061755,80879.0,80878.0,0.00443]
[1731265957761,0.061755,80879.0,80878.0,0.04772983]
[1731265960469,0.061755,80879.0,80878.0,0.00443]
[1731265960658,0.061763,80869.0,80867.0,0.362]
[1731265960853,0.47812569,80879.0,80868.0,0.3608]
[1731265961055,0.47812569,80879.0,80866.0,0.10435934]
[1731265961268,0.06176,80873.0,80872.0,0.3608]
[1731265961458,0.47876569,80879.0,80867.0,0.061764]
[1731265961755,0.061762,80870.0,80867.0,0.061764]
[1731265961961,0.061762,80870.0,80869.0,0.3608]
[1731265962164,0.47812569,80879.0,80870.0,0.061762]
[1731265962165,0.3608,80879.0,80870.0,0.061762]
[1731265962858,0.1284,80881.0,80870.0,0.061762]
[1731265963061,0.061759,80875.0,80870.0,0.061762]
[1731265963262,0.1284,80882.0,80870.0,0.061762]
[1731265964059,0.061758,80876.0,80867.0,0.47944569]
[1731265964259,0.061759,80874.0,80872.0,0.061761]
[1731265966265,0.061755,80880.0,80873.0,0.11732569]
[1731265966475,0.061755,80880.0,80878.0,0.061756]
[1731265967361,0.061757,80877.0,80874.0,0.0411]
[1731265967562,0.061757,80877.0,80874.0,0.102859]
[1731265967764,0.061757,80877.0,80876.0,0.061758]
[1731265967969,0.09201854,80877.0,80876.0,0.061758]
[1731265971970,0.12994868,80877.0,80876.0,0.061758]
[1731265972176,0.09201854,80877.0,80876.0,0.061758]
[1731265972377,0.12994884,80877.0,80876.0,0.061758]
[1731265972987,0.06819184,80877.0,80876.0,0.061758]
[1731265974070,0.03026154,80877.0,80876.0,0.061758]
[1731265974571,0.0406,80885.0,80876.0,0.422558]
[1731265974876,0.061755,80880.0,80876.0,0.422558]
[1731265975768,0.061755,80880.0,80876.0,0.3608]
[1731265976077,0.061755,80880.0,80877.0,0.061756]
[1731265976579,0.061755,80880.0,80878.0,0.061756]
[1731265976783,0.061755,80880.0,80876.0,0.3608]
[1731265976784,0.061755,80880.0,80879.0,0.061755]
[1731265976979,9.26e-05,80886.0,80879.0,0.061755]
[1731265976980,9.26e-05,80886.0,80879.0,0.11732569]
[1731265977282,0.0618426,80886.0,80885.0,0.061751]
[1731265977583,0.03035252,80886.0,80885.0,0.061751]
[1731265977877,9.26e-05,80886.0,80885.0,0.17907669]
[1731265978272,9.26e-05,80886.0,80885.0,0.061751]
[1731265980376,0.0618426,80886.0,80883.0,0.3608]
[1731265980876,0.0618426,80886.0,80883.0,0.422552]
[1731265981181,0.0618426,80886.0,80846.0,0.07358021]
[1731265981182,0.061759,80874.0,80868.0,0.061763]
[1731265981372,0.3608,80884.0,80868.0,0.10424972]
[1731265981373,0.06818645,80873.0,80868.0,0.10424972]
[1731265981571,0.06818645,80872.0,80868.0,0.04248672]
[1731265981772,0.061764,80868.0,80864.0,0.061767]
[1731265981976,0.06818645,80867.0,80864.0,0.061767]
[1731265983281,0.12995145,80867.0,80864.0,0.061767]
[1731265983470,0.06818645,80866.0,80864.0,0.061767]
[1731265984178,0.06819766,80865.0,80863.0,0.12072764]
[1731265984379,0.061762,80871.0,80864.0,0.061767]
[1731265984578,0.06819643,80870.0,80864.0,0.061767]
[1731265984773,0.06819643,80869.0,80864.0,0.061767]
[1731265985070,0.061762,80871.0,80864.0,0.061767]
[1731265985071,0.06819643,80868.0,80864.0,0.061767]
[1731265985271,0.06819643,80867.0,80864.0,0.061767]
[1731265985481,0.06819643,80866.0,80864.0,0.061767]
[1731265985673,0.06819643,80865.0,80864.0,0.061767]
[1731265987589,0.06819368,80865.0,80864.0,0.061766]
[1731265989083,0.06819836,80867.0,80864.0,0.061766]
[1731265989283,0.061764,80868.0,80864.0,0.061766]
[1731265989284,0.06819836,80866.0,80864.0,0.061766]
[1731265989584,0.061762,80871.0,80866.0,0.061765]
[1731265989890,0.061762,80871.0,80870.0,0.3608]
[1731265990290,0.061762,80871.0,80866.0,0.061765]
[1731265990291,0.061763,80870.0,80866.0,0.061765]
[1731265991287,0.0388,80880.0,80863.0,0.10695861]
[1731265991479,0.06819741,80879.0,80863.0,0.16872561]
[1731265991682,0.06819741,80878.0,80863.0,0.14399464]
[1731265991992,0.0302638,80877.0,80863.0,0.10389464]
[1731265992291,0.11732569,80868.0,80862.0,0.3608]
[1731265992588,0.11732569,80868.0,80854.0,0.01171721]
[1731265992589,0.061774,80855.0,80854.0,0.00011721]
[1731265993185,0.422574,80855.0,80854.0,0.00011721]
[1731265994485,0.550574,80855.0,80854.0,0.00011721]
[1731265997194,0.422574,80855.0,80854.0,0.00011721]
[1731266002799,1.25148754,80855.0,80854.0,2.1e-07]
[1731266003791,1.25160021,80855.0,80854.0,2.1e-07]
[1731266004195,1.25160371,80855.0,80854.0,2.1e-07]
[1731266004498,1.28955391,80855.0,80854.0,2.1e-07]
[1731266006789,1.33390037,80855.0,80854.0,2.1e-07]
[1731266007601,1.28955391,80855.0,80854.0,2.1e-07]
[1731266007897,1.28955391,80855.0,80827.0,0.04351758]
[1731266007898,0.061785,80832.0,80827.0,0.04351758]
[1731266008196,0.061785,80832.0,80818.0,0.3608]
[1731266008197,0.550185,80832.0,80818.0,0.362]
[1731266008403,0.61842294,80832.0,80819.0,0.042859]
[1731266008589,0.66562294,80832.0,80819.0,0.042859]
[1731266008993,0.62766678,80832.0,80819.0,0.042859]
[1731266009191,0.66562287,80832.0,80818.0,0.3608]
[1731266009395,0.62766675,80832.0,80818.0,0.3608]
[1731266010309,0.63534235,80832.0,80818.0,0.3608]
[1731266010518,0.63534235,80832.0,80814.0,0.0503]
[1731266010519,0.061798,80815.0,80814.0,0.0503]
[1731266013002,0.061798,80815.0,80809.0,0.3608]
[1731266013204,0.061801,80811.0,80809.0,0.3608]
[1731266015602,0.061801,80811.0,80806.0,0.04351383]
[1731266016606,0.061801,80811.0,80802.0,0.1009]
[1731266017202,0.061801,80811.0,80802.0,0.14404336]
[1731266017402,0.061801,80811.0,80802.0,0.1009]
[1731266017403,0.17912669,80811.0,80802.0,0.1009]
[1731266019515,0.30676669,80811.0,80802.0,0.1009]
[1731266021813,0.30676669,80811.0,80802.0,0.162708]
[1731266022812,0.00011402,80814.0,80810.0,0.36093298]
[1731266023006,0.0058,80825.0,80810.0,0.36093298]
[1731266023207,0.061792,80824.0,80819.0,0.3608]
[1731266023408,0.061792,80824.0,80820.0,0.0475]
[1731266023921,0.061792,80823.0,80820.0,0.0475]
[1731266024124,0.00011688,80822.0,80820.0,0.0475]
[1731266026113,0.00011688,80822.0,80821.0,0.061793]
[1731266026310,0.067583,80835.0,80832.0,0.061785]
[1731266026511,0.3608,80853.0,80832.0,0.3608]
[1731266026512,0.0058,80847.0,80832.0,0.3608]
[1731266026712,0.12764,80851.0,80832.0,0.3608]
[1731266026713,0.3608,80845.0,80833.0,0.0465]
[1731266026917,0.061783,80835.0,80833.0,0.0465]
[1731266027221,0.3608,80838.0,80823.0,0.3608]
[1731266027418,0.11732569,80830.0,80824.0,0.0465]
[1731266029526,0.17911269,80830.0,80824.0,0.0465]
[1731266030618,0.11732569,80830.0,80824.0,0.0465]
[1731266030825,0.06179,80826.0,80824.0,0.0465]
[1731266033828,0.061788,80828.0,80824.0,0.0465]
[1731266034121,0.11732569,80826.0,80824.0,0.0465]
[1731266034429,0.17911569,80826.0,80824.0,0.0465]
[1731266034622,0.03027855,80825.0,80824.0,0.0465]
[1731266035423,0.09206955,80825.0,80823.0,0.3608]
[1731266035626,0.03027855,80824.0,80823.0,0.3608]
[1731266035812,0.03027931,80824.0,80823.0,0.3608]
[1731266036011,0.0618,80813.0,80812.0,0.0058]
[1731266036216,0.0618,80813.0,80805.0,0.0996]
[1731266036217,0.061801,80811.0,80805.0,0.0996]
[1731266036419,0.17912669,80811.0,80805.0,0.0996]
[1731266036920,0.29645238,80811.0,80805.0,0.0996]
[1731266037221,0.17912669,80811.0,80805.0,0.0996]
[1731266037828,0.17912669,80811.0,80808.0,0.061803]
[1731266039221,0.17912669,80811.0,80805.0,0.0996]
[1731266043240,0.17912669,80811.0,80805.0,0.161405]
[1731266044441,0.17912669,80811.0,80805.0,0.0996]
[1731266045438,0.17912669,80811.0,80806.0,0.061805]
[1731266045743,0.3608,80817.0,80810.0,0.37137298]
[1731266046038,0.11732569,80815.0,80812.0,0.0618]
[1731266046239,0.0618,80813.0,80811.0,0.0485]
[1731266046643,0.061801,80812.0,80810.0,0.00013298]
[1731266047538,0.061801,80812.0,80810.0,0.06193498]
[1731266049842,0.11732569,80815.0,80813.0,0.061799]
[1731266050051,0.17912369,80815.0,80813.0,0.061799]
[1731266050551,0.11732569,80815.0,80813.0,0.061799]
[1731266051344,0.17912369,80815.0,80813.0,0.061799]
[1731266051546,0.11732569,80815.0,80813.0,0.061799]
[1731266051736,0.061794,80821.0,80810.0,0.00013298]
[1731266051938,0.061794,80821.0,80816.0,0.422597]
[1731266052139,0.11732569,80822.0,80816.0,0.3608]
[1731266052350,0.3608,80824.0,80816.0,0.3608]
[1731266052650,0.11732569,80822.0,80821.0,0.061793]
[1731266055055,0.061796,80818.0,80817.0,0.061797]
[1731266056552,0.0920765,80818.0,80817.0,0.061797]
[1731266056740,0.06823505,80818.0,80816.0,0.40384146]
[1731266056940,0.13003205,80817.0,80816.0,0.04304146]
[1731266057149,0.0302805,80817.0,80812.0,0.0618]
[1731266057349,0.14760619,80816.0,80812.0,0.0618]
[1731266057550,0.0302805,80815.0,80812.0,0.0618]
[1731266058155,0.0302805,80815.0,80814.0,0.061799]
[1731266059355,0.03028156,80815.0,80814.0,0.061799]
[1731266060955,0.0618,80813.0,80811.0,0.061801]
[1731266061153,0.03028156,80812.0,80811.0,0.061801]
[1731266061748,0.061801,80811.0,80810.0,0.00013298]
[1731266061953,0.061801,80811.0,80793.0,0.063054]
[1731266061954,0.061809,80801.0,80793.0,0.063054]
[1731266062148,0.21709182,80801.0,80793.0,0.061814]
[1731266062961,0.21720438,80801.0,80797.0,0.04252781]
[1731266064355,0.1792386,80801.0,80797.0,0.04252781]
[1731266066753,0.1792386,80801.0,80788.0,0.0498]
[1731266067758,0.1792386,80801.0,80789.0,0.061818]
[1731266067961,0.22169603,80801.0,80792.0,0.04268423]
[1731266073163,0.22169603,80801.0,80792.0,0.10449923]
[1731266074366,0.10437034,80801.0,80792.0,0.10449923]
[1731266074667,0.06191291,80801.0,80792.0,0.04268423]
[1731266074869,0.06191291,80801.0,80800.0,0.16181]
[1731266076970,0.1792386,80801.0,80800.0,0.1]
[1731266080780,0.00010391,80801.0,80800.0,0.1]
[1731266082476,0.00010391,80801.0,80800.0,0.47128]
[1731266082673,0.0116,80816.0,80800.0,0.83208]
[1731266082997,0.3608,80802.0,80800.0,0.1]
[1731266083276,0.061817,80790.0,80789.0,0.0116]
[1731266083474,0.061821,80785.0,80784.0,0.00015753]
[1731266083671,0.06188536,80785.0,80784.0,0.00015753]
[1731266084267,0.06188536,80785.0,80784.0,0.04206503]
[1731266086372,0.17921105,80785.0,80784.0,0.00015753]
[1731266086575,0.09985641,80785.0,80784.0,0.00015753]
[1731266086772,0.06188536,80785.0,80784.0,0.00015753]
[1731266088279,0.17921105,80785.0,80784.0,0.00015753]
[1731266088684,0.061828,80776.0,80775.0,0.0483]
[1731266088984,0.17915369,80776.0,80775.0,0.0483]
[1731266090078,0.11732569,80776.0,80768.0,0.3608]
[1731266090274,0.11732569,80769.0,80768.0,0.422633]
[1731266090480,0.11732569,80769.0,80768.0,0.40364194]
[1731266094678,0.17915869,80769.0,80768.0,0.04284194]
[1731266094878,0.17915869,80769.0,80763.0,0.0479]
[1731266095284,0.17915869,80769.0,80767.0,0.061835]
[1731266095871,0.17915869,80769.0,80763.0,0.0479]
[1731266096183,0.11732569,80769.0,80763.0,0.09115402]
[1731266096684,0.061836,80765.0,80763.0,0.09115402]
[1731266098280,0.061837,80764.0,80763.0,0.09115402]
[1731266100079,0.061837,80764.0,80763.0,0.04325402]
[1731266100382,0.061837,80764.0,80757.0,0.04778839]
[1731266100383,0.061839,80761.0,80757.0,0.04778839]
[1731266100578,0.17916769,80758.0,80757.0,0.04778839]
[1731266101083,0.53996769,80758.0,80757.0,0.04220682]
[1731266101278,0.53996769,80758.0,80757.0,8.839e-05]
[1731266101581,0.53996769,80758.0,80745.0,0.0473]
[1731266101582,0.061851,80746.0,80745.0,0.0473]
[1731266101785,0.061851,80746.0,80745.0,0.4081]
[1731266102483,0.11732569,80751.0,80745.0,0.4081]
[1731266102688,0.11732569,80751.0,80750.0,0.061848]
[1731266102980,0.11732569,80759.0,80745.0,0.5672873]
[1731266103179,0.0116,80766.0,80761.0,0.061839]
[1731266103180,0.073436,80766.0,80761.0,0.061839]
[1731266103390,0.3608,80775.0,80761.0,0.061839]
[1731266103391,0.11732569,80765.0,80761.0,0.061839]
[1731266103884,0.11732569,80765.0,80763.0,0.061838]
[1731266105182,0.11732569,80765.0,80764.0,0.047]
[1731266105685,0.17916169,80765.0,80764.0,0.047]
[1731266106081,0.17916169,80765.0,80761.0,0.0473]
[1731266106082,0.061839,80762.0,80761.0,0.0473]
[1731266106691,0.061839,80761.0,80760.0,0.04369626]
[1731266106876,9.39e-05,80760.0,80733.0,0.36088815]
[1731266107085,0.3608,80749.0,80733.0,0.36088815]
[1731266107285,0.11732569,80734.0,80733.0,0.40399797]
[1731266107582,0.061864,80729.0,80725.0,0.02476477]
[1731266107779,0.11732569,80726.0,80725.0,0.02476477]
[1731266108482,0.11732569,80726.0,80724.0,0.08736845]
[1731266108683,0.17919269,80726.0,80724.0,0.08736845]
[1731266111488,0.48896569,80725.0,80712.0,0.36089527]
[1731266111797,0.061879,80710.0,80702.0,0.061885]
[1731266111983,0.11732569,80704.0,80703.0,0.0461]
[1731266112285,0.11732569,80704.0,80703.0,0.107984]
[1731266112286,0.1047846,80704.0,80703.0,0.107984]
[1731266115585,0.1047846,80704.0,80703.0,0.11185613]
[1731266116283,0.1047846,80704.0,80703.0,0.107984]
[1731266116482,0.1047846,80704.0,80703.0,0.11185613]
[1731266116886,0.07380752,80704.0,80703.0,0.11185613]
[1731266117282,0.3608,80714.0,80703.0,0.04997214]
[1731266117487,0.11732569,80712.0,80704.0,0.00387214]
[1731266117785,0.11732569,80706.0,80705.0,0.00387198]
[1731266117980,0.11732569,80706.0,80705.0,0.00387197]
[1731266118189,0.07395971,80706.0,80705.0,0.00387197]
[1731266118583,0.11732569,80712.0,80705.0,0.00387197]
[1731266118788,0.11732569,80712.0,80710.0,0.061878]
[1731266119595,0.3608,80714.0,80712.0,0.061876]
[1731266120591,0.3608,80714.0,80713.0,0.00387183]
[1731266121181,0.3608,80714.0,80713.0,0.0038719]
[1731266121388,0.061876,80713.0,80706.0,0.061882]
[1731266121598,0.11732569,80708.0,80707.0,0.00387197]
[1731266121892,0.11732569,80708.0,80706.0,0.061882]
[1731266124192,0.11732569,80708.0,80703.0,0.12553345]
[1731266124392,0.11732569,80708.0,80707.0,0.061881]
[1731266124695,0.11732569,80708.0,80703.0,0.08849127]
[1731266125000,0.061885,80701.0,80700.0,0.10015262]
[1731266126096,0.37176,80700.0,80682.0,0.061899]
[1731266126291,0.3608,80692.0,80683.0,0.00387306]
[1731266126593,0.3608,80692.0,80690.0,0.061893]
[1731266126804,0.3608,80692.0,80691.0,0.00387297]
[1731266126992,0.3608,80701.0,80695.0,0.061889]
[1731266127196,0.3608,80701.0,80698.0,0.061887]
[1731266127584,0.061891,80694.0,80692.0,0.0927]
[1731266127786,0.59545138,80693.0,80682.0,0.00010835]
[1731266127987,0.59545138,80693.0,80653.0,0.07408436]
[1731266127988,0.59545138,80683.0,80653.0,0.07408436]
[1731266128291,0.3608,80657.0,80648.0,0.03688674]
[1731266128487,0.3608,80657.0,80649.0,0.0061975]
[1731266128987,0.3608,80657.0,80643.0,0.03546401]
[1731266128988,0.3608,80657.0,80650.0,0.01007233]
[1731266129189,0.3608,80666.0,80658.0,0.061918]
[1731266129391,0.17923169,80674.0,80662.0,0.3608]
[1731266129596,0.11732569,80668.0,80662.0,0.3608]
[1731266129797,0.11732569,80674.0,80664.0,0.061913]
[1731266129990,0.11732569,80674.0,80662.0,0.3608]
[1731266130402,0.11732569,80674.0,80663.0,0.01007287]
[1731266130699,0.11732569,80674.0,80662.0,0.3608]
[1731266130700,0.11732569,80674.0,80666.0,0.061912]
[1731266131000,0.11732569,80674.0,80667.0,0.00387418]
[1731266131300,0.11732569,80674.0,80668.0,0.01007253]
[1731266131602,0.11732569,80674.0,80669.0,0.0100721]
[1731266132099,0.11732569,80674.0,80668.0,0.061911]
[1731266132293,0.00012426,80682.0,80680.0,0.061901]
[1731266132490,0.00012426,80682.0,80681.0,0.41397324]
[1731266132693,0.00012426,80682.0,80681.0,0.42017045]
[1731266132897,0.00012426,80682.0,80681.0,0.41397324]
[1731266135503,0.00012426,80682.0,80681.0,0.05317324]
[1731266135800,0.00012426,80682.0,80681.0,0.0493]
[1731266136005,0.00012426,80682.0,80681.0,0.05317331]
[1731266136202,0.00012426,80682.0,80681.0,0.0493]
[1731266136994,0.061901,80681.0,80666.0,0.061912]
[1731266137200,0.00012426,80682.0,80671.0,0.061908]
[1731266137398,0.00012426,80682.0,80681.0,0.061901]
[1731266138710,0.00012426,80682.0,80674.0,0.3608]
[1731266139005,0.11732569,80675.0,80674.0,0.3608]
[1731266140600,0.11732569,80675.0,80667.0,0.3608]
[1731266140801,0.11732569,80669.0,80668.0,0.061911]
[1731266141203,0.11732569,80669.0,80668.0,0.422711]
[1731266141903,0.11732569,80669.0,80668.0,0.061911]
[1731266142995,0.11732569,80669.0,80654.0,0.3608]
[1731266142996,0.11732569,80669.0,80661.0,0.107715]
[1731266143197,0.061912,80666.0,80655.0,0.06192]
[1731266143392,0.061912,80666.0,80658.0,0.03456729]
[1731266145808,0.3608,80667.0,80657.0,0.061919]
[1731266145809,0.11732569,80660.0,80657.0,0.061919]
[1731266146108,0.11732569,80660.0,80657.0,0.09594146]
[1731266146704,0.11732569,80660.0,80659.0,0.061918]
[1731266148410,0.11732569,80664.0,80652.0,0.3608]
[1731266148611,0.11732569,80653.0,80649.0,0.0458]
[1731266149002,0.061923,80652.0,80649.0,0.0458]
[1731266149408,0.3608,80650.0,80638.0,0.0454]
[1731266149612,0.11732569,80642.0,80639.0,0.0471]
[1731266149912,0.11732569,80642.0,80640.0,0.061932]
[1731266150103,8.907e-05,80642.0,80639.0,0.0471]
[1731266150702,8.907e-05,80642.0,80641.0,0.0346716]
[1731266150898,8.907e-05,80642.0,80641.0,0.0001551]
[1731266154313,0.3608,80650.0,80641.0,0.0001551]
[1731266154516,0.11732569,80645.0,80644.0,0.061929]
[1731266154813,0.3608,80650.0,80648.0,0.061926]
[1731266155320,0.00015896,80649.0,80648.0,0.061926]
[1731266156716,0.00015896,80649.0,80641.0,0.0001551]
[1731266156910,0.11732569,80646.0,80641.0,0.0001551]
[1731266157108,0.11732569,80646.0,80644.0,0.061929]
[1731266157310,0.11732569,80646.0,80641.0,0.0001551]
[1731266157311,0.00015896,80649.0,80647.0,0.061926]
[1731266158008,0.00015896,80649.0,80648.0,0.11732569]
[1731266158212,0.061913,80666.0,80656.0,0.061919]
[1731266158410,0.17923869,80666.0,80657.0,0.061919]
[1731266158614,0.17923869,80666.0,80649.0,0.0442]
[1731266159014,0.17923869,80666.0,80650.0,0.061924]
[1731266159328,0.00012662,80664.0,80650.0,0.061924]
[1731266159524,0.00012662,80664.0,80655.0,0.06192]
[1731266159719,0.00012662,80664.0,80656.0,0.06192]
[1731266159920,0.11732569,80660.0,80650.0,0.061924]
[1731266160113,0.11732569,80660.0,80652.0,0.061923]
[1731266160114,0.17924269,80660.0,80652.0,0.061923]
[1731266160518,0.061922,80653.0,80649.0,0.405]
[1731266160711,0.11732569,80654.0,80642.0,0.061931]
[1731266160915,0.3608,80658.0,80642.0,0.061931]
[1731266160916,0.11732569,80648.0,80642.0,0.061931]
[1731266161522,0.061923,80652.0,80643.0,0.046]
[1731266161715,0.3608,80658.0,80643.0,0.046]
[1731266161716,0.17925169,80648.0,80643.0,0.046]
[1731266162313,0.3608,80651.0,80645.0,0.061928]
[1731266162518,0.422724,80651.0,80645.0,0.061928]
[1731266162918,0.422724,80651.0,80643.0,0.046]